fUST/lending_fUST_20251230
["ID","MTS","AMOUNT","RATE_DAILY","PERIOD"]
[400060452,1767057052030,-300.0,0.00032521,2]
[400060453,1767057052040,-300.0,0.00032548,2]
[400060454,1767057052049,-300.0,0.00032548,2]
[400060455,1767057052058,-300.0,0.00032548,2]
[400060456,1767057052068,-300.0,0.00032548,2]
[400060457,1767057052078,-300.0,0.00032548,2]
[400060458,1767057052087,-300.0,0.00032548,2]
[400060459,1767057052097,-300.0,0.00032548,2]
[400060460,1767057052108,-300.0,0.00032548,2]
[400060461,1767057052118,-1000.0,0.00032575,30]
[400060462,1767057052132,-1000.0,0.00032575,30]
[400060463,1767057052141,-1000.0,0.00032575,30]
[400060464,1767057052151,-715.0,0.00032575,30]
[400060465,1767057052162,-5000.0,0.00032601,15]
[400060466,1767057052172,-1517.79,0.00032602,33]
[400060467,1767057052182,-5000.0,0.00032678,3]
[400060468,1767057052194,-158.14,0.000327,2]
[400060469,1767057052204,-156.88,0.000327,7]
[400060470,1767057052214,-2000.0,0.00032727,7]
[400060471,1767057052224,-5000.0,0.00032875,15]
[400060472,1767057052234,-1000.0,0.00032876,120]
[400060473,1767057052246,-574.99,0.00032876,2]
[400060474,1767057052256,-574.99,0.00032876,2]
[400060475,1767057052267,-574.99,0.00032876,2]
[400060476,1767057052278,-574.99,0.00032876,2]
[400060477,1767057052289,-574.99,0.00032876,2]
[400060478,1767057052299,-574.99,0.00032876,2]
[400060479,1767057052309,-574.99,0.00032876,2]
[400060480,1767057052319,-574.99,0.00032876,2]
[400060481,1767057052330,-574.99,0.00032876,2]
[400060482,1767057052340,-574.99,0.00032876,2]
[400060483,1767057052350,-574.99,0.00032876,2]
[400060484,1767057052360,-574.99,0.00032876,2]
[400060485,1767057052371,-574.99,0.00032876,2]
[400060486,1767057052380,-574.99,0.00032876,2]
[400060487,1767057052390,-574.99,0.00032876,2]
[400060488,1767057052400,-574.99,0.00032876,2]
[400060489,1767057052409,-574.99,0.00032876,2]
[400060490,1767057052419,-574.99,0.00032876,2]
[400060491,1767057052429,-574.99,0.00032876,2]
[400060492,1767057052440,-574.99,0.00032876,2]
[400060493,1767057052450,-574.99,0.00032876,2]
[400060494,1767057052459,-574.99,0.00032876,2]
[400060495,1767057052469,-574.99,0.00032876,2]
[400060496,1767057052479,-575.12853152,0.00032876,2]
[400060497,1767057052489,-205.50333784,0.00032876,2]
[400060498,1767057052499,-1972.85,0.00032877,10]
[400060499,1767057052510,-1644.05,0.00032877,10]
[400060500,1767057052519,-500.0,0.00032877,5]
[400060501,1767057052529,-1150.0,0.00032877,5]
[400060502,1767057052539,-316.1506563,0.000329,120]
[400060503,1767057052549,-295.3368581,0.000329,120]
[400060504,1767057052559,-199.1895859,0.000329,120]
[400060505,1767057052568,-289.11522439,0.000329,120]
[400060506,1767057052578,-254.25652247,0.000329,120]
[400060507,1767057052588,-202.56937028,0.000329,120]
[400060508,1767057052599,-338.74799974,0.000329,120]
[400060509,1767057052608,-1136.67682311,0.000329,120]
[400060510,1767057052618,-469.38876097,0.000329,120]
[400060511,1767057052627,-541.00842197,0.000329,120]
[400060512,1767057052637,-585.32499773,0.00032946,28]
[400060513,1767057052646,-526.11126252,0.00033,12]
[400060514,1767057052655,-3268.0,0.00033,120]
[400060515,1767057052665,-151.0,0.00033,33]
[400060516,1767057052675,-5000.0,0.00033,120]
[400060517,1767057052685,-250.0,0.00033,10]
[400060518,1767057052695,-1017.0,0.00033,7]
[400060519,1767057052705,-500.0,0.00033,12]
[400060520,1767057052717,-5000.0,0.00033005,2]
[400060521,1767057052727,-250.0,0.000331,10]
[400060522,1767057052737,-321.5,0.00033121,5]
[400060523,1767057052747,-5000.0,0.00033149,15]
[400060524,1767057052759,-1517.79,0.0003315,34]
[400060525,1767057052769,-598.904671,0.00033165,2]
[400060526,1767057052780,-250.0,0.000332,10]
[400060527,1767057052791,-189.0,0.00033226,30]
[400060528,1767057052801,-1364.0,0.00033229,2]
[400060529,1767057052811,-2156.0,0.00033229,2]
[400060530,1767057052820,-627.0,0.00033229,2]
[400060531,1767057052829,-1183.0,0.00033244,2]
[400060532,1767057052840,-15277.58765547,0.00033266,2]
[400060533,1767057052849,-352.14149,0.000333,120]
[400060534,1767057052859,-250.0,0.000333,10]
[400060535,1767057052869,-160.0,0.0003336,5]
[400060536,1767057052878,-1214.82770849,0.00033385,2]
[400060537,1767057052887,-250.0,0.000334,10]
[400060538,1767057052897,-1000.0,0.00033425,5]
[400060539,1767057052907,-1250.0,0.00033425,5]
[400060540,1767057052916,-250.0,0.000335,10]
[400060541,1767057052926,-250.0,0.000336,10]
[400060542,1767057052936,-1183.0,0.00033637,120]
[400060543,1767057052946,-5000.0,0.00033697,15]
[400060544,1767057052956,-1517.79,0.00033698,35]
[400060545,1767057052966,-250.0,0.00033699,5]
[400060546,1767057052977,-13657.63,0.000337,14]
[400060547,1767057052987,-250.0,0.000337,10]
[400060548,1767057052997,-1183.0,0.0003371,2]
[400060549,1767057053007,-370.810693,0.000338,10]
[400060550,1767057053016,-447.0,0.00033829,120]
[400060551,1767057053027,-1186.0,0.00033844,2]
[400060552,1767057053036,-3246.12796854,0.00033882,2]
[400060553,1767057053046,-1184.0,0.00033885,2]
[400060554,1767057053055,-316.1506563,0.000339,120]
[400060555,1767057053064,-295.3368581,0.000339,120]
[400060556,1767057053074,-199.1895859,0.000339,120]
[400060557,1767057053083,-289.11522439,0.000339,120]
[400060558,1767057053093,-254.25652247,0.000339,120]
[400060559,1767057053103,-338.74799974,0.000339,120]
[400060560,1767057053112,-1136.67682311,0.000339,120]
[400060561,1767057053122,-469.38876097,0.000339,120]
[400060562,1767057053134,-541.00842197,0.000339,120]
[400060563,1767057053144,-1183.0,0.00033939,2]
[400060564,1767057053153,-585.32499773,0.00033951,29]
[400060565,1767057053164,-1500.0,0.00033973,5]
[400060566,1767057053174,-464.80913509,0.00033973,5]
[400060567,1767057053184,-5000.0,0.00034,120]
[400060568,1767057053195,-1207.08,0.00034,7]
[400060569,1767057053205,-1041.66666667,0.00034,30]
[400060570,1767057053215,-1017.0,0.00034,7]
[400060571,1767057053225,-1183.0,0.0003401,2]
[400060572,1767057053235,-1183.0,0.00034033,2]
[400060573,1767057053244,-1184.0,0.00034179,2]
[400060574,1767057053255,-5000.0,0.00034245,15]
[400060575,1767057053265,-1517.79,0.00034246,36]
[400060576,1767057053274,-1183.0,0.0003428,7]
[400060577,1767057053283,-1183.0,0.00034296,2]
[400060578,1767057053293,-1183.0,0.00034353,2]
[400060579,1767057053303,-160.0,0.00034437,6]
[400060580,1767057053312,-732.72792841,0.00034521,5]
[400060581,1767057053321,-350.0,0.00034521,5]
[400060582,1767057053330,-2000.0,0.00034545,7]
[400060583,1767057053339,-1184.0,0.00034595,7]
[400060584,1767057053349,-1184.0,0.00034623,2]
[400060585,1767057053359,-321.5,0.00034644,6]
[400060586,1767057053369,-5000.0,0.00034649,4]
[400060587,1767057053379,-1358074.02326885,0.0003465,4]
[400060588,1767057053388,-15277.58765547,0.00034675,2]
[400060589,1767057053398,-5000.0,0.00034727,12]
[400060590,1767057053408,-5000.0,0.00034793,15]
[400060591,1767057053417,-1517.79,0.00034794,37]
[400060592,1767057053428,-150.59,0.00034858,60]
[400060593,1767057053437,-166.99779971,0.00034858,60]
[400060594,1767057053448,-1229.09,0.00034858,60]
[400060595,1767057053457,-1183.0,0.00034868,2]
[400060596,1767057053467,-316.1506563,0.000349,120]
[400060597,1767057053477,-295.3368581,0.000349,120]
[400060598,1767057053486,-289.11522439,0.000349,120]
[400060599,1767057053497,-254.25652247,0.000349,120]
[400060600,1767057053506,-338.74799974,0.000349,120]
[400060601,1767057053516,-1136.67682311,0.000349,120]
[400060602,1767057053525,-469.38876097,0.000349,120]
[400060603,1767057053535,-541.00842197,0.000349,120]
[400060604,1767057053545,-352.14149,0.000349,120]
[400060605,1767057053554,-150.58,0.00034952,60]
[400060606,1767057053564,-1170.54999547,0.00034955,30]
[400060607,1767057053575,-150.59,0.00034958,60]
[400060608,1767057053585,-1229.09,0.00034958,60]
[400060609,1767057053594,-1183.0,0.00034992,7]
[400060610,1767057053604,-1183.0,0.00034998,2]
[400060611,1767057053614,-5000.0,0.00034999,15]
[400060612,1767057053624,-151.0,0.00035,120]
[400060613,1767057053634,-50000.0,0.00035,120]
[400060614,1767057053644,-20000.0,0.00035,120]
[400060615,1767057053655,-1041.66666667,0.00035,120]
[400060616,1767057053665,-1041.66666667,0.00035,7]
[400060617,1767057053675,-150.1,0.00035,30]
[400060618,1767057053686,-800.0,0.00035,60]
[400060619,1767057053696,-1017.0,0.00035,7]
[400060620,1767057053706,-151.2146,0.00035,2]
[400060621,1767057053716,-151.0,0.00035,31]
[400060622,1767057053726,-151.0,0.00035,31]
[400060623,1767057053736,-151.0,0.00035,31]
[400060624,1767057053747,-5000.0,0.00035,120]
[400060625,1767057053756,-1183.0,0.00035029,2]
[400060626,1767057053766,-1184.0,0.00035041,120]
[400060627,1767057053777,-150.59,0.00035058,60]
[400060628,1767057053786,-1229.09,0.00035058,60]
[400060629,1767057053797,-1183.0,0.00035072,2]
[400060630,1767057053806,-5000.0,0.00035103,6]
[400060631,1767057053815,-150.59,0.00035158,60]
[400060632,1767057053824,-1229.09,0.00035158,60]
[400060633,1767057053834,-150.59,0.00035258,60]
[400060634,1767057053844,-1229.09,0.00035258,60]
[400060635,1767057053854,-158.84,0.000353,7]
[400060636,1767057053864,-1802.09,0.000353,30]
[400060637,1767057053873,-5000.0,0.00035341,15]
[400060638,1767057053884,-1517.79,0.00035342,38]
[400060639,1767057053893,-450.0,0.00035342,5]
[400060640,1767057053902,-150.59,0.00035358,60]
[400060641,1767057053912,-1229.09,0.00035358,60]
[400060642,1767057054006,-205.90938,0.000354,120]
[400060643,1767057054017,-2477.790854,0.000354,24]
[400060644,1767057054027,-188.0,0.00035441,30]
[400060645,1767057054039,-150.59,0.00035458,60]
[400060646,1767057054049,-1229.09,0.00035458,60]
[400060647,1767057054060,-160.0,0.00035514,7]
[400060648,1767057054070,-150.59,0.00035558,60]
[400060649,1767057054080,-1229.09,0.00035558,60]
[400060650,1767057054090,-178.07473616,0.00035616,2]
[400060651,1767057054100,-150.59,0.00035658,60]
[400060652,1767057054110,-1229.09,0.00035658,60]
[400060653,1767057054122,-150.59,0.00035758,60]
[400060654,1767057054136,-1229.09,0.00035758,60]
[400060655,1767057054147,-1207.08,0.000358,7]
[400060656,1767057054158,-474.0,0.00035829,120]
[400060657,1767057054171,-1000.0,0.00035833,30]
[400060658,1767057054181,-1000.0,0.00035833,30]
[400060659,1767057054191,-1000.0,0.00035833,30]
[400060660,1767057054202,-150.59,0.00035858,60]
[400060661,1767057054212,-1229.09,0.00035858,60]
[400060662,1767057054222,-5000.0,0.00035889,15]
[400060663,1767057054232,-1517.79,0.0003589,39]
[400060664,1767057054247,-1136.67682311,0.000359,120]
[400060665,1767057054260,-1984.534635,0.000359,24]
[400060666,1767057054270,-1500.0,0.000359,24]
[400060667,1767057054279,-150.59,0.00035958,60]
[400060668,1767057054288,-1229.09,0.00035958,60]
[400060669,1767057054298,-5000.0,0.00036,120]
[400060670,1767057054307,-349.0,0.00036,2]
[400060671,1767057054316,-500.0,0.00036048,14]
[400060672,1767057054326,-151.0,0.00036048,31]
[400060673,1767057054335,-151.0,0.00036048,31]
[400060674,1767057054345,-151.0,0.00036048,31]
[400060675,1767057054354,-151.0,0.00036048,31]
[400060676,1767057054364,-151.0,0.00036048,31]
[400060677,1767057054373,-151.0,0.00036048,31]
[400060678,1767057054383,-151.0,0.00036048,31]
[400060679,1767057054392,-222.50442,0.00036048,31]
[400060680,1767057054401,-150.59,0.00036058,60]
[400060681,1767057054411,-1229.09,0.00036058,60]
[400060682,1767057054420,-15277.58765547,0.00036084,2]
[400060683,1767057054430,-1183.0,0.00036085,2]
[400060684,1767057054439,-1041.66666667,0.000361,120]
[400060685,1767057054448,-1183.0,0.00036147,2]
[400060686,1767057054458,-151.0,0.00036158,31]
[400060687,1767057054467,-220.073602,0.00036158,31]
[400060688,1767057054477,-151.0,0.00036158,31]
[400060689,1767057054486,-150.69,0.00036158,60]
[400060690,1767057054496,-1229.09,0.00036158,60]
[400060691,1767057054505,-550.0,0.00036164,5]
[400060692,1767057054515,-321.5,0.00036168,30]
[400060693,1767057054525,-1183.0,0.00036216,2]
[400060694,1767057054535,-1183.0,0.00036228,7]
[400060695,1767057054545,-1364.0,0.00036229,2]
[400060696,1767057054554,-2156.0,0.00036229,2]
[400060697,1767057054563,-627.0,0.00036229,2]
[400060698,1767057054572,-1229.09,0.00036258,60]
[400060699,1767057054582,-168.216,0.00036322,2]
[400060700,1767057054594,-1229.09,0.00036358,60]
[400060701,1767057054605,-2000.0,0.00036364,7]
[400060702,1767057054615,-1000.0,0.000364,24]
[400060703,1767057054624,-1500.0,0.000364,24]
[400060704,1767057054633,-168.216,0.00036422,2]
[400060705,1767057054643,-5000.0,0.00036437,15]
[400060706,1767057054652,-1517.79,0.00036438,40]
[400060707,1767057054662,-1229.09,0.00036458,60]
[400060708,1767057054671,-641.391581,0.00036493,8]
[400060709,1767057054680,-641.39158094,0.00036493,8]
[400060710,1767057054690,-641.39158094,0.00036493,8]
[400060711,1767057054699,-641.39158094,0.00036493,8]
[400060712,1767057054709,-641.39158094,0.00036493,8]
[400060713,1767057054719,-641.39158094,0.00036493,8]
[400060714,1767057054729,-641.39158094,0.00036493,8]
[400060715,1767057054738,-641.39158094,0.00036493,8]
[400060716,1767057054747,-641.39158094,0.00036493,8]
[400060717,1767057054757,-641.39158094,0.00036493,8]
[400060718,1767057054767,-641.39158094,0.00036493,8]
[400060719,1767057054778,-641.39158094,0.00036493,8]
[400060720,1767057054788,-641.39158094,0.00036493,8]
[400060721,1767057054798,-641.39158094,0.00036493,8]
[400060722,1767057054807,-352.14149,0.000365,120]
[400060723,1767057054817,-1183.0,0.00036507,2]
[400060724,1767057054827,-168.216,0.00036522,2]
[400060725,1767057054836,-1229.09,0.00036558,60]
[400060726,1767057054847,-4374.16793367,0.00036561,2]
[400060727,1767057054858,-160.0,0.00036591,8]
[400060728,1767057054867,-428.0,0.000366,2]
[400060729,1767057054877,-168.216,0.00036622,2]
[400060730,1767057054892,-1229.09,0.00036658,60]
[400060731,1767057054902,-500.0,0.0003669,30]
[400060732,1767057054912,-500.0,0.0003669,30]
[400060733,1767057054922,-500.0,0.0003669,30]
[400060734,1767057054932,-500.0,0.0003669,30]
[400060735,1767057054943,-500.0,0.0003669,30]
[400060736,1767057054953,-500.0,0.0003669,30]
[400060737,1767057054963,-500.0,0.0003669,30]
[400060738,1767057054973,-500.0,0.0003669,30]
[400060739,1767057054983,-500.0,0.0003669,30]
[400060740,1767057054993,-500.0,0.0003669,30]
[400060741,1767057055002,-500.0,0.0003669,30]
[400060742,1767057055011,-500.0,0.0003669,30]
[400060743,1767057055021,-500.0,0.0003669,30]
[400060744,1767057055031,-500.0,0.0003669,30]
[400060745,1767057055041,-500.0,0.0003669,30]
[400060746,1767057055051,-5000.0,0.0003672,8]
[400060747,1767057055060,-377.3687661,0.0003674,30]
[400060748,1767057055070,-376.253583,0.0003674,30]
[400060749,1767057055080,-376.253583,0.0003674,30]
[400060750,1767057055091,-1229.09,0.00036758,60]
[400060751,1767057055101,-158.14,0.000368,2]
[400060752,1767057055111,-13657.63,0.000368,14]
[400060753,1767057055121,-151.0,0.000368,31]
[400060754,1767057055142,-151.0,0.000368,31]
[400060755,1767057055153,-151.0,0.000368,31]
[400060756,1767057055162,-152.472212,0.000368,30]
[400060757,1767057055172,-151.0,0.000368,31]
[400060758,1767057055182,-151.0,0.000368,31]
[400060759,1767057055193,-503.29,0.000368,60]
[400060760,1767057055202,-200.0,0.00036834,120]
[400060761,1767057055212,-2167.12098939,0.00036843,2]
[400060762,1767057055222,-1229.09,0.00036858,60]
[400060763,1767057055231,-204.8804204,0.00036877,30]
[400060764,1767057055240,-608.6274177,0.00036877,30]
[400060765,1767057055250,-308.4715212,0.00036877,30]
[400060766,1767057055259,-303.3053281,0.00036877,30]
[400060767,1767057055269,-303.3053281,0.00036877,30]
[400060768,1767057055279,-303.3053281,0.00036877,30]
[400060769,1767057055289,-1000.0,0.000369,24]
[400060770,1767057055299,-1500.0,0.000369,24]
[400060771,1767057055308,-1229.09,0.00036958,60]
[400060772,1767057055318,-5000.0,0.00036985,15]
[400060773,1767057055327,-1517.79,0.00036986,41]
[400060774,1767057055336,-650.0,0.00036986,5]
[400060775,1767057055346,-5000.0,0.00037,120]
[400060776,1767057055355,-1136.67682311,0.00037,120]
[400060777,1767057055364,-1229.09,0.00037058,60]
[400060778,1767057055374,-2167.12098939,0.00037107,2]
[400060779,1767057055384,-153.0,0.00037151,30]
[400060780,1767057055393,-1229.09,0.00037158,60]
[400060781,1767057055403,-1229.296,0.00037258,60]
[400060782,1767057055412,-156.8380901,0.00037268,2]
[400060783,1767057055421,-151.0,0.00037293,31]
[400060784,1767057055431,-180.604464,0.00037293,31]
[400060785,1767057055440,-151.0,0.00037293,31]
[400060786,1767057055449,-180.604464,0.00037293,31]
[400060787,1767057055458,-180.604464,0.00037293,31]
[400060788,1767057055467,-180.604464,0.00037293,31]
[400060789,1767057055477,-151.0,0.00037293,31]
[400060790,1767057055486,-786.798742,0.00037293,31]
[400060791,1767057055495,-156.404391,0.00037293,31]
[400060792,1767057055504,-786.798742,0.00037293,31]
[400060793,1767057055513,-786.798742,0.00037293,31]
[400060794,1767057055523,-786.798742,0.00037293,31]
[400060795,1767057055532,-151.0,0.00037293,31]
[400060796,1767057055541,-151.0,0.00037293,31]
[400060797,1767057055551,-262.841748,0.00037293,31]
[400060798,1767057055560,-322.881004,0.00037293,31]
[400060799,1767057055570,-151.0,0.00037293,31]
[400060800,1767057055579,-322.881004,0.00037293,31]
[400060801,1767057055590,-322.881004,0.00037293,31]
[400060802,1767057055600,-322.881004,0.00037293,31]
[400060803,1767057055609,-167.502473,0.00037293,31]
[400060804,1767057055619,-167.502473,0.00037293,31]
[400060805,1767057055628,-167.502473,0.00037293,31]
[400060806,1767057055638,-167.502473,0.00037293,31]
[400060807,1767057055647,-151.0,0.00037293,31]
[400060808,1767057055657,-151.0,0.00037293,31]
[400060809,1767057055667,-151.0,0.00037293,31]
[400060810,1767057055676,-151.0,0.00037293,31]
[400060811,1767057055685,-151.0,0.00037293,31]
[400060812,1767057055696,-151.0,0.00037293,31]
[400060813,1767057055706,-151.0,0.00037293,31]
[400060814,1767057055715,-151.0,0.00037293,31]
[400060815,1767057055735,-151.0,0.00037293,31]
[400060816,1767057055746,-151.0,0.00037293,31]
[400060817,1767057055756,-151.0,0.00037293,31]
[400060818,1767057055765,-151.0,0.00037293,31]
[400060819,1767057055775,-253.301123,0.00037293,31]
[400060820,1767057055784,-253.301123,0.00037293,31]
[400060821,1767057055793,-151.0,0.00037293,31]
[400060822,1767057055803,-253.301123,0.00037293,31]
[400060823,1767057055812,-151.0,0.00037293,31]
[400060824,1767057055822,-253.301123,0.00037293,31]
[400060825,1767057055831,-151.0,0.00037293,31]
[400060826,1767057055956,-151.0,0.00037293,31]
[400060827,1767057055967,-151.0,0.00037293,31]
[400060828,1767057055977,-151.0,0.00037293,31]
[400060829,1767057055986,-151.0,0.00037293,31]
[400060830,1767057055998,-151.0,0.00037293,31]
[400060831,1767057056008,-151.0,0.00037293,31]
[400060832,1767057056017,-151.0,0.00037293,31]
[400060833,1767057056027,-151.0,0.00037293,31]
[400060834,1767057056036,-151.0,0.00037293,31]
[400060835,1767057056048,-298.968903,0.00037293,31]
[400060836,1767057056069,-151.0,0.00037293,31]
[400060837,1767057056079,-151.0,0.00037293,31]
[400060838,1767057056089,-167.933848,0.00037293,31]
[400060839,1767057056098,-249.18,0.00037293,31]
[400060840,1767057056107,-151.0,0.00037293,31]
[400060841,1767057056117,-151.0,0.00037293,31]
[400060842,1767057056129,-151.0,0.00037293,30]
[400060843,1767057056139,-151.0,0.00037293,31]
[400060844,1767057056149,-151.0,0.00037293,30]
[400060845,1767057056159,-156.233766,0.00037293,31]
[400060846,1767057056171,-151.0,0.00037293,31]
[400060847,1767057056180,-151.0,0.00037293,31]
[400060848,1767057056190,-151.0,0.00037293,31]
[400060849,1767057056202,-151.0,0.00037293,31]
[400060850,1767057056211,-223.767963,0.00037293,31]
[400060851,1767057056221,-151.0,0.00037293,31]
[400060852,1767057056231,-262.001019,0.00037293,31]
[400060853,1767057056240,-151.0,0.00037293,31]
[400060854,1767057056251,-151.0,0.00037293,7]
[400060855,1767057056260,-151.0,0.00037293,31]
[400060856,1767057056270,-151.0,0.00037293,31]
[400060857,1767057056280,-2373.129759,0.00037293,28]
[400060858,1767057056290,-2373.129759,0.00037293,28]
[400060859,1767057056300,-2373.129759,0.00037293,28]
[400060860,1767057056309,-2373.129759,0.00037293,28]
[400060861,1767057056319,-157.035377,0.00037293,31]
[400060862,1767057056328,-94860.74862821,0.00037293,18]
[400060863,1767057056338,-1836.079856,0.0003734,11]
[400060864,1767057056348,-2167.1209894,0.00037341,2]
[400060865,1767057056357,-1000.0,0.0003736,11]
[400060866,1767057056366,-1000.0,0.0003738,11]
[400060867,1767057056376,-1202.110064,0.0003738,11]
[400060868,1767057056386,-5000.0,0.00037391,15]
[400060869,1767057056395,-127741.90399964,0.00037393,7]
[400060870,1767057056405,-151.0,0.00037393,31]
[400060871,1767057056414,-151.0,0.00037393,31]
[400060872,1767057056423,-151.0,0.00037393,31]
[400060873,1767057056434,-172.576134,0.00037398,31]
[400060874,1767057056444,-5000.0,0.00037399,15]
[400060875,1767057056454,-5000.0,0.00037399,11]
[400060876,1767057056464,-166.38,0.000374,7]
[400060877,1767057056473,-1000.0,0.000374,11]
[400060878,1767057056483,-1000.0,0.000374,11]
[400060879,1767057056492,-1000.0,0.000374,24]
[400060880,1767057056503,-1500.0,0.000374,24]
[400060881,1767057056512,-89766.6037759,0.00037413,2]
[400060882,1767057056522,-290.92683,0.00037413,31]
[400060883,1767057056532,-153.304838,0.00037413,31]
[400060884,1767057056541,-151.0,0.00037413,31]
[400060885,1767057056551,-151.0,0.00037413,31]
[400060886,1767057056561,-151.0,0.00037413,31]
[400060887,1767057056570,-151.0,0.00037413,31]
[400060888,1767057056580,-151.0,0.00037413,31]
[400060889,1767057056590,-151.0,0.00037413,31]
[400060890,1767057056601,-151.0,0.00037413,31]
[400060891,1767057056611,-275.60155609,0.00037482,7]
[400060892,1767057056621,-641.39158094,0.00037493,9]
[400060893,1767057056630,-15277.58765547,0.00037493,2]
[400060894,1767057056640,-3246.12796854,0.00037493,2]
[400060895,1767057056649,-5000.0,0.00037533,15]
[400060896,1767057056659,-1517.79,0.00037534,42]
[400060897,1767057056668,-205.0,0.0003759,47]
[400060898,1767057056678,-10000.0,0.00037592,2]
[400060899,1767057056687,-200.0,0.00037592,10]
[400060900,1767057056696,-151.0,0.00037593,31]
[400060901,1767057056706,-151.0,0.00037593,31]
[400060902,1767057056715,-151.0,0.00037593,31]
[400060903,1767057056725,-151.0,0.00037593,31]
[400060904,1767057056734,-151.0,0.00037593,31]
[400060905,1767057056743,-151.0,0.00037593,31]
[400060906,1767057056754,-151.0,0.00037593,31]
[400060907,1767057056763,-151.0,0.00037593,31]
[400060908,1767057056773,-180.604464,0.00037593,31]
[400060909,1767057056782,-180.604464,0.00037593,31]
[400060910,1767057056791,-151.0,0.00037593,31]
[400060911,1767057056801,-180.604464,0.00037593,31]
[400060912,1767057056811,-151.0,0.00037593,31]
[400060913,1767057056820,-180.604464,0.00037593,31]
[400060914,1767057056829,-151.0,0.00037593,31]
[400060915,1767057056839,-151.0,0.00037593,31]
[400060916,1767057056849,-180.604464,0.00037593,31]
[400060917,1767057056859,-180.604464,0.00037593,31]
[400060918,1767057056869,-180.604464,0.00037593,31]
[400060919,1767057056878,-180.604464,0.00037593,31]
[400060920,1767057056887,-180.604464,0.00037593,31]
[400060921,1767057056897,-180.604464,0.00037593,31]
[400060922,1767057056906,-180.604464,0.00037593,31]
[400060923,1767057056916,-180.604464,0.00037593,31]
[400060924,1767057056925,-180.604464,0.00037593,31]
[400060925,1767057056935,-180.604464,0.00037593,31]
[400060926,1767057056944,-180.604464,0.00037593,31]
[400060927,1767057056954,-180.604464,0.00037593,31]
[400060928,1767057056963,-155.416884,0.00037593,31]
[400060929,1767057056973,-156.794228,0.00037593,31]
[400060930,1767057056982,-151.0,0.00037593,31]
[400060931,1767057056992,-151.0,0.00037593,31]
[400060932,1767057057001,-223.316494,0.00037593,31]
[400060933,1767057057011,-204.630048,0.00037593,31]
[400060934,1767057057020,-151.0,0.00037593,31]
[400060935,1767057057030,-151.0,0.00037593,31]
[400060936,1767057057040,-151.0,0.00037593,31]
[400060937,1767057057049,-151.0,0.00037593,31]
[400060938,1767057057059,-786.798742,0.00037593,31]
[400060939,1767057057067,-786.798742,0.00037593,31]
[400060940,1767057057076,-786.798742,0.00037593,31]
[400060941,1767057057086,-786.798742,0.00037593,31]
[400060942,1767057057095,-786.798742,0.00037593,31]
[400060943,1767057057104,-786.798742,0.00037593,31]
[400060944,1767057057114,-786.798742,0.00037593,31]
[400060945,1767057057128,-786.798742,0.00037593,31]
[400060946,1767057057138,-786.798742,0.00037593,31]
[400060947,1767057057147,-786.798742,0.00037593,31]
[400060948,1767057057156,-786.798742,0.00037593,31]
[400060949,1767057057167,-786.798742,0.00037593,31]
[400060950,1767057057177,-786.798742,0.00037593,31]
[400060951,1767057057186,-786.798742,0.00037593,31]